Cogmind - Beta 16.1 @@@ ROGUE MODE // 2026.04.13 @ 22:46:00 Player: Ammie Result: Smashed by cave-in Performance ------------- Evolutions (0) 0 Regions Visited (1) 200 Robots Destroyed (21) 105 Value Destroyed (425) 425 Prototype IDs (0) 0 Alien Tech Used (0) 0 Bonus (0) 0 TOTAL SCORE: 730 Bonus ------- None Cogmind --------- Core Integrity 0/250 Matter 265/300 Energy 100/100 System Corruption 9% Temperature Cool (1) Movement Treading (160) Location -10/Materials Parts ------- > --- POWER (1) -------- (None) > --- PROPULSION (2) --- Light Treads > --- UTILITY (2) ------ (None) > --- WEAPON (2) ------- Assault Rifle Assault Rifle > --- INVENTORY (5) ---- Light Ion Engine Light Treads Assault Rifle Grenade Launcher Datajack Peak State ------------ > --- POWER ------------ Light Ion Engine > --- PROPULSION ------- Light Treads Light Treads > --- UTILITY ---------- Small Storage Unit Medium Storage Unit > --- WEAPON ----------- Assault Rifle Assault Rifle > --- INVENTORY -------- Light Treads Light Treads Assault Rifle Assault Rifle Grenade Launcher Datajack [Rating: 7] Favorites ----------- Power Ion Engine Engine Ion Engine Propulsion Light Treads Treads Light Treads Utility Medium Storage Unit Storage Medium Storage Unit Weapon Assault Rifle Energy Gun EM Pulse Gun Ballistic Gun Assault Rifle Build | -11 -10 ------- Run | Yrd Mat Slots Evolved . | . . Power . | . . Propulsion . | . . Utility . | . . Weapon . | . . Parts Attached 13 | 6 7 Power 3 | 1 2 Engine 3 | 1 2 Core . | . . Reactor . | . . Propulsion 4 | 2 2 Treads 4 | 2 2 Leg . | . . Wheel . | . . Hover . | . . Flight . | . . Utility 2 | 1 1 Device . | . . Storage 2 | 1 1 Processor . | . . Hackware . | . . Protection . | . . Artifact . | . . Weapon 4 | 2 2 Energy Gun 1 | 1 . Energy Cannon . | . . Ballistic Gun 3 | 1 2 Ballistic Cannon . | . . Launcher . | . . Special Weapon . | . . Impact Weapon . | . . Slashing Weapon . | . . Piercing Weapon . | . . Special Melee Weapon . | . . Unidentified Prototypes . | . . Parts Lost 6 | . 6 Power 2 | . 2 Propulsion 1 | . 1 Utility 1 | . 1 Weapon 2 | . 2 Highest Loss Streak 4 | . 4 To Critical Strikes . | . . Average Backups 5 | . 6 Power . | . . Propulsion 1 | . 1 Utility . | . . Weapon 2 | . 3 Tool/Special . | . . Unused Backups 3 | . 3 Power . | . . Propulsion . | . . Utility . | . . Weapon 2 | . 2 Tool/Special 1 | . 1 Average Slot Usage (%) 84 | . 84 Engine 13 | . 13 Treads 27 | . 27 Storage 14 | . 14 Energy Gun 3 | . 3 Ballistic Gun 24 | . 24 Peak Build Rating 7 | 6 7 Average Rating 5 | 4 5 On Entrance 3 | . 6 Avg Prop Armor Cover (%) . | . . Naked Turns . | . . Heaviest Build 19 | 14 19 Greatest Support 40 | 40 40 Greatest Overweight (x) . | . . Average Overweight (x) . | . . Largest Inventory Capacity 10 | 8 10 Average Capacity 9 | 7 9 Most Carried 7 | 2 7 Average Carried 5 | . 6 Final Capacity 8 | 8 5 Final Carried 5 | 2 5 Class Distribution -------------------- 58% | Mutant 41% | Scavenger-Mutant Dominant Class ---------------- Mutant | -10/Materials Resources | -11 -10 ----------- Run | Yrd Mat Matter Collected 517 | 106 411 Remotely . | . . Salvage Created 617 | . 617 Parts 36 | . 36 Haulers Intercepted 1 | . 1 Recyclers Shooed . | . . Parts Field Recycled . | . . Retrieved Matter . | . . Parts Self-Destructed . | . . Prevented . | . . Parts Restored . | . . Kills | -11 -10 ------- Run | Yrd Mat Combat Hostiles Destroyed 14 | . 14 Guns 14 | . 14 Classes Destroyed 7 | . 7 Worker 1 | . 1 Hauler 1 | . 1 Mechanic 1 | . 1 Operator 1 | . 1 Watcher 3 | . 3 Swarmer 6 | . 6 Grunt 8 | . 8 Best Kill Streak 4 | . 4 Combat Bots Only 4 | . 4 Max Kills in Single Turn 2 | . 2 Gunslinging 1 | . 1 Exploded . | . . Melee . | . . Uniques/NPCs Destroyed . | . . Combat | -11 -10 -------- Run | Yrd Mat Hostile Shots Fired 83 | . 83 Missed 26 | . 26 Hits 57 | . 57 Projectile 57 | . 57 AOE 1 | . 1 Damage Taken 1145 | . 1145 Core 250 | . 250 Absorbed by Shields . | . . Core Remaining (%) 100 | 100 . Volleys Fired 55 | . 55 Largest 2 | . 2 Hottest 60 | . 60 Shots Fired 101 | . 101 Gun 101 | . 101 Cannon . | . . Launcher . | . . Special . | . . Kinetic 84 | . 84 Thermal . | . . Explosive . | . . Electromagnetic 17 | . 17 Robot Hit Streak 9 | . 9 Robot Miss Streak 4 | . 4 Penetration Max . | . . Secondary Targets 1 | . 1 Max Gunslinging Chain 1 | . 1 Shots Hit Robots 63 | . 63 Core Hits 32 | . 32 Critical Kills 1 | . 1 Critical Parts Destroyed . | . . Critical Strikes 1 | . 1 Destroy 1 | . 1 Melee Attacks . | . . Impact . | . . Slashing . | . . Piercing . | . . Sneak Attacks . | . . Combat Hostiles . | . . Follow-up Attacks . | . . Damage Inflicted 805 | . 805 Guns 802 | . 802 Cannons . | . . Explosions . | . . Melee . | . . Ramming 3 | . 3 Kinetic 681 | . 681 Thermal . | . . Explosive . | . . Electromagnetic 121 | . 121 Impact . | . . Slashing . | . . Piercing . | . . Highest Corruption . | . . Average Corruption . | . . Corruption Purged . | . . Corruption Blocked . | . . Overload Shots . | . . Overflow Damage . | . . Projectiles . | . . Explosions . | . . Melee . | . . Knockbacks . | . . Impact . | . . Kinetic . | . . Secondary . | . . Self-Inflicted Damage . | . . Shots . | . . Rammed 1 | . 1 Targets Rammed 1 | . 1 Kicked . | . . Crushed . | . . Highest Temperature 45 | . 45 Average Temperature 19 | . 19 Received Heat Transfer 255 | . 255 Siege Activations . | . . Martial Activations . | . . Shielding Activations . | . . Robots Disrupted . | . . Combat Hostiles . | . . Robots Corrupted . | . . Combat Hostiles . | . . Parts Fried . | . . Impact Corruptions . | . . Robots Melted . | . . Combat Hostiles . | . . Parts Melted . | . . Heat Transferred . | . . Parts Sabotaged . | . . Parts Stolen . | . . Parts Stripped . | . . Power Chain Reactions . | . . Alert | -11 -10 ------- Run | Yrd Mat Maximum Alert Level . | . . Low Security (%) 100 | 100 100 Level 1 . | . . Level 2 . | . . Level 3 . | . . Level 4 . | . . Level 5 . | . . High Security . | . . Max Security . | . . Peak Influence 183 | . 183 Initial . | . . Average 80 | . 86 Influence Increases 444 | . 444 Destroy 0b10 Robot/C 280 | . 280 Destroy 0b10 Robot/NC 35 | . 35 Destroy Leader 68 | . 68 Successful Hack 15 | . 15 Destroy Structure 1 | . 1 Lose Combat Pursuer 45 | . 45 Influence Decreases 444 | . 444 Time Decay 390 | . 390 Lost Part 54 | . 54 Squads Dispatched 3 | . 3 Investigation 2 | . 2 Extermination . | . . Reinforcement 1 | . 1 Assault . | . . Garrison . | . . Intercept . | . . Searches Triggered . | . . Construction Impeded . | . . Haulers Reinforced . | . . Active Scanning Responses . | . . Cargo Convoy Interrupts . | . . Stealth | -11 -10 --------- Run | Yrd Mat Distress Signals . | . . Communications Jammed . | . . Distress Signals . | . . Times Spotted 23 | . 23 Peak Tracking Total 4 | . 4 Tactical Retreats 3 | . 3 Traps | -11 -10 ------- Run | Yrd Mat Traps Triggered 2 | . 2 Indirectly . | . . Trap Hack Attempts . | . . Triggered . | . . Disarmed . | . . Reprogrammed . | . . Reused . | . . Traps Extracted . | . . Installed . | . . Triggered . | . . Machines | -11 -10 ---------- Run | Yrd Mat Machines Disabled . | . . Max in Single Turn . | . . Machines Repaired . | . . Machines Dismantled . | . . Machines Sabotaged . | . . Overloaded Fab Kills . | . . Hacking | -11 -10 --------- Run | Yrd Mat Machines Accessed 4 | . 4 Terminals 4 | . 4 Fabricators . | . . Repair Stations . | . . Recycling Units . | . . Scanalyzers . | . . Garrison Access . | . . Total Hacks 8 | . 8 Successful 5 | . 5 Failed 3 | . 3 Catastrophic 1 | . 1 Database Lockouts . | . . Manual 7 | . 7 Terminals 8 | . 8 Fabricators . | . . Repair Stations . | . . Recycling Units . | . . Scanalyzers . | . . Garrison Access . | . . Terminal Hacks 1 | . 1 Alert Level 1 | . 1 Fabricator Hacks . | . . Repair Station Hacks . | . . Recycling Unit Hacks . | . . Scanalyzer . | . . Garrison Access Hacks . | . . Unauthorized Hacks 4 | . 4 Terminals 4 | . 4 Botnet 3 | . 3 Operators 1 | . 1 Fabricators . | . . Repair Stations . | . . Recycling Units . | . . Scanalyzers . | . . Garrison Access . | . . Data Cores Recovered . | . . Used . | . . Hacking Detections 3 | . 3 Full Trace Events 1 | . 1 Feedback Events . | . . Feedback Blocked . | . . Robot Schematics Acquired . | . . Robots Built . | . . Authchips . | . . Time . | . . Total Robot Build Rating . | . . Part Schematics Acquired . | . . Parts Built . | . . Authchips . | . . Time . | . . Total Part Build Rating . | . . Part Studies Acquired . | . . Parts Repaired . | . . Time . | . . Parts Recycled . | . . Recycled Matter . | . . Retrieved Matter . | . . Retrieved Components . | . . Parts Scanalyzed . | . . Part Schematics Acquired . | . . Parts Damaged . | . . Bothacking | -11 -10 ------------ Run | Yrd Mat Used RIF Installer . | . . Robots Hacked . | . . Non-combat . | . . Combat . | . . Robot Hacks Applied . | . . Relay Couplers Released . | . . Fabnet Peak Effective % . | . . Robots Rewired . | . . Allies Hacked . | . . Hacks Repelled . | . . Allies | -11 -10 -------- Run | Yrd Mat Total Allies . | . . Largest Group . | . . Highest-Rated Group . | . . Highest-Rated Ally . | . . Total Orders . | . . Ally Attacks . | . . Total Damage . | . . Kills . | . . Allies Corrupted . | . . Allies Melted . | . . Intel | -11 -10 ------- Run | Yrd Mat Active Infowar (turns) . | . . Robot Analysis Total . | . . Derelict Logs Recovered . | . . Drone Launches . | . . Drone Recoveries . | . . Exploration | -11 -10 ------------- Run | Yrd Mat Turns Passed 1063 | 66 997 Spaces Moved 526 | 39 487 Core 6 | 6 . Treads 520 | 33 487 Legs . | . . Wheels . | . . Hover . | . . Flight . | . . Fastest Speed 50 | 50 160 Average Speed 158 | 143 160 Slowest Speed 160 | 160 160 Overloaded Moves . | . . Propulsion Burnouts . | . . Robots Hopped . | . . Potential Cave-ins 1 | . 1 Cave-ins Triggered 1 | . 1 Exploration Rate (%) 28 | 4 53 Regions Visited 1 Branch Regions . Pre-discovered Areas . | . . Known Exits Taken . | . . Unknown Exits Taken 1 | 1 . Scrap Searched . | . . Spaces Dug . | . . Terrain Destroyed . | . . Melee . | . . Projectile . | . . AOE . | . . Terrain Rammed . | . . Walls Destroyed . | . . Machines Disabled . | . . Actions | -11 -10 --------- Run | Yrd Mat Total 648 | 46 602 Wait 48 | . 48 Move 524 | 38 486 Hop . | . . Pick Up 6 | 2 4 Fast Attach 7 | 6 1 Attach 3 | . 3 Detach . | . . Swap 3 | . 3 Drop 1 | . 1 Fire 55 | . 55 Melee . | . . Ram . | . . Kick . | . . Crush 1 | . 1 Escape Stasis . | . . Rewire . | . . Trap . | . . Miscellaneous . | . . Route ------- -11/Scrapyard -10/Materials (discovered 1 exit: [*Mat]) History --------- Turn | Location | Event 5 | -11/Scrapyard | Discovered new exit (range 14) 67 | -11/Scrapyard | Entered Materials 329 | -10/Materials | Build established: Mutant 353 | -10/Materials | Discovered new exit (range 12) 926 | -10/Materials | Build established: Scavenger-Mutant 1047 | -10/Materials | Core integrity fell below 50% 1064 | -10/Materials | Crushed by falling debris 1064 | -10/Materials | Smashed by cave-in Last Messages --------------- 01040_ Nuclear Reactor explodes. 01040_ G-47 Trooper destroyed. 01040_ Nuclear Reactor explodes. 01040_ K-01 Serf destroyed. 01040_ Lgt. Treads destroyed. 01040_ T-07 Excavator destroyed. 01043_ K-01 Serf collects debris. 01044_ The unstable cave ceiling collapses. 01044_ Assault Rifle destroyed. 01055_ K-01 Serf collects debris. 01057_ The unstable cave ceiling collapses. 01058_ K-01 Serf collects debris. 01060_ The unstable cave ceiling collapses. 01061_ K-01 Serf collects debris. 01064_ The unstable cave ceiling collapses. 01064_ Crushed by falling debris. 01064_ Ion Engine destroyed. 01064_ System corrupted by crushing effect (+4). 01064_ Med. Storage Unit destroyed. 01064_ System corrupted by crushing effect (+5). Map ----- +----------------------------------------------------+ | ???????????????# #???# """ # | | ???????????????# ##### #???# """ # | | ???????????????# =% #????######???# """ # | | ???????????????# * #?????????????# # | | ???????????????+ #?????????????########+# | | ???????????????# #????????????????????# | | ???????????????## ##### #????????????????????# | | ????????????????# #???# #?????????????######?# | | ????????????????# #???# [############### #?# | | ????????????????# #???# =! = #?# | | ???????????????##+##### =%= %[ %/ #?# | | ???????????????# # ############### ### | | ???????????????# " =*#= # T %######### ### | | ??????????###### T +* [+%% ## ![ # | | ?????????# # " #=! # """ ## [ [ + % | | ?????????# # #% # """ ## [[[ # =""" | | ########## # #= # """ ## # """" | | # # ######## #/ ## # """" | | #! """ # """ # !# ######### # """" | | # """ # """ # """ # #???????#+###### """ | | # """ # """ # """ + #?????### ##???# | | #! """ # # """ # ####### ##### | | # """ # # # < | | + # "T" #! # T | | # # """ ### # ###### ##+#########+ | | # # # @##????## ## #? | | ############+### #?????# ## " " ## | | # ##????# ## "R" ## | | + ! # ###### =%/ """ ## | | ############+#+# % ! !%!## ## | | #??# # # |######+####+####### | | #??# # ## =*% #????#### | | #??# !# # # [ #???????? | | #??# # # " " """ #???????? | | #??# ### # # # """"""""" #???????? | | ???# ! !! #?### #### """ """ #???????? | | ???# !! #???#####???# #???????? | | ???############????????????###########?###???????? | | | | | | | | | | | | | | | | | | | | | | | | | +----------------------------------------------------+ Best States ------------- Heat Dissipation 25 Energy Generation 10 Energy Capacity 250 Matter Stores 300 Matter Capacity 300 Sight Range 16 Terrain Scan Density 10 Evasion (%) 40 Recoil Reduction 2 Item Schematics ----------------- None Robot Schematics ------------------ None Fabricated ------------ Nothing Repaired ---------- Nothing Studied --------- None Alien Tech Used ----------------- None Achievements -------------- None Challenges ------------ None Game ------ Seed CooledCobblerWheel Manual? 0 Play Time 00:06:22 Cumulative 60.0 hours Start 2026.04.13 @ 22:40:33 End 2026.04.13 @ 22:46:00 Sessions 1 Manual Loads 0 Difficulty Rogue Special Mode None Game No. 102 Rogue 102 Adventurer 0 Explorer 0 Win Type - Total 0 Types 0/0/0/0/0/0/0/0/0/0 Lore% 21 Gallery% 29 Achievement% 25 Wizard Run 0 Options --------- Layout 0 ASCII 0 Keyboard 0 Movement Mouse Keybinds 0 Fullscreen 1 Font 24/Smallcaps Map View 38x25 Zoom Use 100% Tactical HUD 1 Map Filters NONE Filters NONE Steam 1 RUN: 8cc06386-551f-4463-bce0-a919614df7ed